{"text_format":"3","workbook":"xlsx","n_sheets":1,"sheets":["Экономика"],"not_rendered":{"defined_names":16},"read":"whole","date_system":"1900"}

{"sheet":"Экономика","index":0,"n_rows":62,"n_cols":13,"rows_kept":62}
["№",null,"Фамилия","Имя","Пол","Класс","Класс участия","Балл","Макс. Балл","Статус","Призер МЭ прошлого года","Учитель","Место работы учителя"]
[1,null,3,4,6,9,10,11,12,13,14,15,16]
[1,1,"Хайруллина ","Язиля","ж",5,5,21,40,null,null,"Доброхотова Э.Р","\"Лицей № 2\""]
[2,2,"Чурбанова ","Дарина ","ж",5,5,13,40,null,null,"Доброхотова Э.Р","\"Лицей № 2\""]
[3,3,"Хузязянов","Юсуф","м",5,5,27,40,"Призер",null,{"$f":"L3","v":"Доброхотова Э.Р"},"\"Лицей № 2\""]
[4,4,"Васильева","Полина","ж",5,5,22,40,null,null,"Доброхотова Э.Р","\"Лицей № 2\""]
[5,5,"Наумова","Анастасия","ж",5,5,28,40,"Победитель",null,"Доброхотова Э.Р","\"Лицей № 2\""]
[6,6,"Назиров","Аброр","м",5,5,12,40,null,null,"Доброхотова Э.Р","\"Лицей № 2\""]
[7,7,"Гарипов ","Самат","м",5,5,12,40,null,null,"Доброхотова Э.Р","\"Лицей № 2\""]
[8,8,"Артемьев","Иван","м",5,5,18,40,null,null,"Доброхотова Э.Р","\"Лицей № 2\""]
[9,9,"Коваленко ","Егор","м",5,5,22,40,null,null,"Доброхотова Э.Р","\"Лицей № 2\""]
[10,10,"Нигматуллин","Амир","м",5,5,22,40,null,null,"Доброхотова Э.Р","\"Лицей № 2\""]
[11,11,"Ямщикова","Мария ","ж",5,5,24,40,"Призер",null,"Доброхотова Э.Р","\"Лицей № 2\""]
[12,12,"Куприянов","Анатолий","м",5,5,16,40,null,null,{"$f":"L12","v":"Доброхотова Э.Р"},"\"Лицей № 2\""]
[13,13,"Шубникова","Ксения","ж",5,5,24,40,"Призер",null,"Доброхотова Э.Р","\"Лицей № 2\""]
[14,14,"Ильдимирова","Рада","ж",5,5,10,40,null,null,"Доброхотова Э.Р","\"Лицей № 2\""]
[15,15,"Копышев","Илья","м",5,5,12,40,null,null,"Доброхотова Э.Р","\"Лицей № 2\""]
[16,16,"Сулейманов","Тимур","м",5,5,24,40,"Призер",null,"Доброхотова Э.Р","\"Лицей № 2\""]
[17,17,"Калеников","Ярослав","м",5,5,21,40,null,null,"Доброхотова Э.Р","\"Лицей № 2\""]
[18,18,"Кадыров","Амир","м",5,5,28,40,"Победитель",null,"Доброхотова Э.Р","\"Лицей № 2\""]
[19,19,"Казакова","Екатерина","ж",5,5,19,40,null,null,"Доброхотова Э.Р","\"Лицей № 2\""]
[21,20,"Глушихин","Илья","м",5,5,17,40,null,null,"Доброхотова Э.Р","\"Лицей № 2\""]
[22,21,"Паиров","Арсений","м",5,5,8,40,null,null,{"$f":"L21","v":"Доброхотова Э.Р"},"\"Лицей № 2\""]
[23,22,"Анохина","Мария ","ж",5,5,6,40,null,null,"Доброхотова Э.Р","\"Лицей № 2\""]
[24,23,"Кротов","Тимофей","м",5,5,10,40,null,null,"Доброхотова Э.Р","\"Лицей № 2\""]
[25,24,"Степанова","Пелагея","ж",5,5,4,40,null,null,"Доброхотова Э.Р","\"Лицей № 2\""]
[26,25,"Зубарев ","Матвей","м",5,5,4,40,null,null,"Доброхотова Э.Р","\"Лицей № 2\""]
[27,26,"Бычков","Иван","м",5,5,9,40,null,null,"Доброхотова Э.Р","\"Лицей № 2\""]
[28,27,"Лисин","Даниил","м",5,5,5,40,null,null,"Доброхотова Э.Р","\"Лицей № 2\""]
[29,28,"Маусов","Павел","м",5,5,4,40,null,null,"Доброхотова Э.Р","\"Лицей № 2\""]
[30,29,"Ситдиков","Азамат","м",5,5,8,40,null,null,"Доброхотова Э.Р","\"Лицей № 2\""]
[31,30,"Фаляхов","Ярослав","м",6,6,17,40,null,null,"Доброхотова Эльмира Рафаиловна","\"Лицей № 2\""]
[32,31,"Абрамов","Максим","м",6,6,16,40,null,null,"Доброхотова Эльмира Рафаиловна","\"Лицей № 2\""]
[33,32,"Новиков","Всеволод","м",6,6,32,40,"Победитель",null,"Доброхотова Эльмира Рафаиловна","\"Лицей № 2\""]
[34,33,"Ишметова","Алсу","ж",6,6,24,40,"Призер",null,"Доброхотова Эльмира Рафаиловна","\"Лицей № 2\""]
[35,34,"Тихонова","Ангелина","ж",6,6,21,40,null,null,"Доброхотова Эльмира Рафаиловна","\"Лицей № 2\""]
[36,35,"Сагдеева","Алена","ж",6,6,17,40,null,null,"Доброхотова Эльмира Рафаиловна","\"Лицей № 2\""]
[37,36,"Сафин","Хасан","м",6,6,24,40,"Призер",null,"Доброхотова Эльмира Рафаиловна","\"Лицей № 2\""]
[38,37,"Хорев","Кирилл","м",6,6,16,40,null,null,"Доброхотова Эльмира Рафаиловна","\"Лицей № 2\""]
[39,38,"Габайдуллина","Сафия","ж",6,6,20,40,null,null,"Доброхотова Эльмира Рафаиловна","\"Лицей № 2\""]
[40,39,"Зарипов","Данис","м",6,6,30,40,"Призер",null,"Доброхотова Эльмира Рафаиловна","\"Лицей № 2\""]
[41,40,"Закиров","Амирхан","м",6,6,20,40,null,null,"Доброхотова Эльмира Рафаиловна","\"Лицей № 2\""]
[42,41,"Тесаков","Глеб","м",6,6,20,40,null,null,"Доброхотова Эльмира Рафаиловна","\"Лицей № 2\""]
[43,42,"Крайнов","Родион","м",7,7,65,70,"Победитель",null,"Зелинский Руслан Владимирович","\"Лицей № 2\""]
[44,43,"Сухов","Булат","м",7,7,61,70,"Призер",null,"Зелинский Руслан Владимирович","\"Лицей № 2\""]
[45,44,"Никитин","Вадим","м",7,7,33,70,null,null,"Зелинский Руслан Владимирович","\"Лицей № 2\""]
[46,45,"Кордюков","Клим","м",7,7,53,70,"Призер",null,"Зелинский Руслан Владимирович","\"Лицей № 2\""]
[47,46,"Маусов","Кирилл","м",7,7,40,70,null,null,"Зелинский Руслан Владимирович","\"Лицей № 2\""]
[48,47,"Мокеев","Михаил","м",7,7,53,70,"Призер",null,"Зелинский Руслан Владимирович","\"Лицей № 2\""]
[49,48,"Солихова","Есуман","ж",7,7,14,70,null,null,"Шагиева Алина Ленаровна","\"Лицей № 2\""]
[50,49,"Еремина","Ангелина","ж",7,7,14,70,null,null,"Шагиева Алина Ленаровна","\"Лицей № 2\""]
[51,50,"Мударисова Зайнап",null,"ж",7,7,14,70,null,null,"Шагиева Алина Ленаровна","\"Лицей № 2\""]
[52,51,"Хуснуллина","Гульназ","ж",8,8,35,70,"Призер",null,"Андреева Ирина Вячеславовна","\"Лицей № 2\""]
[53,52,"Салимгараева","Самира","ж",8,8,31,70,"Призер",null,"Андреева Ирина Вячеславовна","\"Лицей № 2\""]
[54,53,"Тимофеев","Тимофей","м",9,9,52,70,"Призер",null,"Зелинский Руслан Владимирович","\"Лицей № 2\""]
[55,54,"Саттаров","Аяз","м",9,9,52,70,"Призер",null,"Зелинский Руслан Владимирович","\"Лицей № 2\""]
[56,55,"Заббаров","Руслан","м",9,9,56,70,"Победитель",null,"Зелинский Руслан Владимирович","\"Лицей № 2\""]
[57,56,"Звягин","Тимофей","м",9,9,56,70,"Победитель",null,"Зелинский Руслан Владимирович","\"Лицей № 2\""]
[58,57,"Мустафин","Карим","м",9,9,56,70,"Победитель",null,"Зелинский Руслан Владимирович","\"Лицей № 2\""]
[59,58,"Турцев","Арсений","м",9,9,56,70,"Победитель",null,"Зелинский Руслан Владимирович","\"Лицей № 2\""]
[60,59,"Петрянин","Кирилл","м",11,11,23,70,null,null,"Шагиева Алина Ленаровна","\"Лицей № 2\""]
[61,60,"Песчанов","Александр ","м",9,9,0,70,null,"Призер","Зелинский Руслан Владимирович","\"Лицей № 2\""]